bitfinex/quotes_ETHUSD_20250925
["timestamp","ask_amount","ask_price","bid_price","bid_amount"]
[1758803796614,0.792,3997.2,3996.0,0.02502502]
[1758803796913,3.0,3997.0,3995.4,0.002]
[1758803797123,3.792,3996.2,3995.4,0.002]
[1758803797413,6.29456512,3995.9,3995.4,0.002]
[1758803797598,15.62656512,3995.9,3995.4,0.002]
[1758803797797,16.30296512,3995.9,3995.4,0.002]
[1758803798188,16.29196512,3995.9,3995.4,0.002]
[1758803798389,6.97496512,3995.9,3995.4,0.002]
[1758803798600,16.29296512,3995.9,3995.4,0.002]
[1758803798797,3.792,3995.9,3995.4,0.002]
[1758803798983,6.29456512,3995.9,3995.4,0.002]
[1758803799303,15.60056512,3995.9,3995.4,0.002]
[1758803799492,13.099,3995.9,3995.4,0.002]
[1758803799691,6.29456512,3995.9,3995.8,0.1268]
[1758803799900,13.099,3995.9,3995.8,0.1268]
[1758803800237,16.28196512,3995.9,3995.8,0.1268]
[1758803800732,5.876,3995.9,3995.8,0.002]
[1758803800939,15.50016512,3995.9,3995.8,0.002]
[1758803801093,3.29481566,3995.5,3995.4,0.002]
[1758803801290,6.29481566,3995.5,3995.4,0.002]
[1758803801488,6.98441566,3995.5,3995.4,0.002]
[1758803801699,15.60381566,3995.5,3995.4,0.002]
[1758803801884,3.0,3995.5,3995.4,0.002]
[1758803802108,14.81181566,3995.5,3995.4,0.002]
[1758803802286,10.224,3995.5,3995.4,0.002]
[1758803802487,6.29481566,3995.5,3995.4,0.002]
[1758803802689,15.60381566,3995.5,3995.4,0.002]
[1758803803019,6.98441566,3995.5,3995.4,0.002]
[1758803803220,16.29341566,3995.5,3995.4,0.002]
[1758803803422,18.52906966,3995.5,3995.4,0.002]
[1758803803720,18.67145566,3995.5,3995.4,0.002]
[1758803803887,23.88154166,3995.5,3995.4,0.002]
[1758803804087,0.792,3995.3,3993.1,0.4612]
[1758803804314,0.792,3994.2,3992.8,0.2284]
[1758803804511,0.792,3993.9,3992.8,0.2284]
[1758803804713,0.792,3993.6,3992.8,0.2284]
[1758803805023,0.792,3993.3,3992.2,0.2284]
[1758803805222,3.2281,3994.0,3992.2,0.2284]
[1758803805223,2.085,3993.2,3992.3,0.4612]
[1758803805427,0.792,3993.8,3992.3,0.4612]
[1758803805610,0.2281,3994.3,3992.4,0.25344759]
[1758803805611,3.0,3993.6,3992.4,0.25344759]
[1758803805812,0.792,3994.3,3993.2,2.50419596]
[1758803805990,3.0,3994.1,3993.3,0.2284]
[1758803806196,0.792,3994.0,3992.8,0.2284]
[1758803806516,9.31,3993.9,3993.1,2.50426053]
[1758803806714,2.50324314,3994.9,3993.5,2.50403387]
[1758803806899,0.792,3994.4,3993.4,2.50408127]
[1758803807103,2.5031258,3995.1,3993.9,2.50381767]
[1758803807434,3.0,3994.9,3994.0,0.6896]
[1758803807615,9.32832712,3994.8,3994.0,0.2284]
[1758803807928,9.32832712,3994.8,3993.2,0.4612]
[1758803807929,0.792,3994.3,3993.2,0.4612]
[1758803808227,0.792,3994.3,3991.5,2.50532189]
[1758803808228,2.50378096,3994.0,3992.5,0.6896]
[1758803808414,2.10332712,3993.9,3993.0,2.50437779]
[1758803808615,2.10332712,3993.9,3992.6,0.2284]
[1758803808813,0.2281,3995.4,3993.1,0.2284]
[1758803809015,0.4615,3995.7,3993.2,0.48624257]
[1758803809215,2.50281566,3995.5,3993.3,0.2284]
[1758803809395,0.2281,3996.0,3993.4,0.80813062]
[1758803809726,9.31,3995.9,3993.7,2.50392806]
[1758803809896,9.31,3995.9,3994.5,2.50344183]
[1758803810095,9.31,3995.9,3993.8,0.71463881]
[1758803810096,2.50232652,3996.3,3994.7,2.50331689]
[1758803810290,0.6896,3996.8,3994.8,2.52827565]
[1758803810495,9.31,3996.7,3995.1,2.50301832]
[1758803810695,2.52045392,3996.6,3996.5,0.1248]
[1758803810896,2.5021268,3996.6,3996.5,0.1248]
[1758803811098,2.52045392,3996.6,3996.5,0.1248]
[1758803811333,2.62655905,3997.2,3996.5,0.1248]
[1758803811492,9.31,3997.1,3995.6,0.2284]
[1758803811696,2.52020352,3997.0,3996.9,0.1248]
[1758803811897,2.98170352,3997.0,3996.9,0.1248]
[1758803812100,2.50242209,3996.2,3995.6,0.2284]
[1758803812321,9.32732712,3996.1,3995.6,0.2284]
[1758803812529,9.309,3996.1,3995.6,0.2284]
[1758803812725,0.01832712,3996.0,3995.6,0.2284]
[1758803813034,9.309,3996.1,3995.9,0.1248]
[1758803813250,0.4615,3997.8,3996.0,0.2284]
[1758803813456,8.16032712,3997.2,3995.3,0.4612]
[1758803813753,0.2281,3997.6,3995.3,0.4612]
[1758803813754,3.0,3997.0,3995.5,0.2284]
[1758803813952,8.61841293,3999.1,3995.5,0.2284]
[1758803813953,3.0,3996.8,3995.6,0.4612]
[1758803814255,2.086,3996.7,3995.7,0.2284]
[1758803814421,2.10352712,3996.7,3996.1,2.50242796]
[1758803814606,0.01832712,3996.7,3996.2,2.50232009]
[1758803814938,5.50175346,3997.2,3995.5,2.50277041]
[1758803814939,7.221,3996.6,3995.5,0.2284]
[1758803815156,3.01832712,3996.5,3995.5,0.2284]
[1758803815303,0.792,3996.4,3994.9,2.50316676]
[1758803815504,2.50258197,3995.9,3994.8,0.2284]
[1758803815824,9.32432712,3995.8,3994.8,0.2284]
[1758803816159,2.50286023,3995.5,3994.4,2.96469401]
[1758803816449,0.01832712,3995.4,3994.3,0.2284]
[1758803816617,0.792,3995.4,3994.3,0.2284]
[1758803816803,0.792,3995.5,3994.4,2.50349835]
[1758803817005,0.792,3995.5,3994.3,0.2284]
[1758803817006,0.792,3995.3,3994.3,0.2284]
[1758803817315,2.5028197,3995.5,3994.5,2.50338701]
[1758803817509,0.792,3995.6,3994.3,2.73195294]
[1758803817510,7.219,3995.2,3994.6,2.50337829]
[1758803817710,0.4615,3996.6,3994.6,0.52353312]
[1758803818045,3.0,3996.4,3994.7,0.25343316]
[1758803818253,3.0,3996.0,3995.2,2.50295955]
[1758803818413,2.50246044,3996.1,3994.5,2.50342619]
[1758803818414,2.086,3996.1,3995.7,2.5026425]
[1758803818747,3.0,3996.9,3995.7,0.2284]
[1758803818952,0.2281,3997.0,3995.7,0.2284]
[1758803819109,9.32132712,3996.9,3995.7,0.2284]
[1758803819311,9.302,3996.8,3995.8,2.50261028]
[1758803819541,3.01832712,3996.7,3995.7,2.73107467]
[1758803819749,5.52042217,3996.7,3995.7,2.73107467]
[1758803820048,3.0,3996.5,3995.7,2.73107467]
[1758803820250,0.01832712,3996.4,3996.0,2.50244962]
[1758803820460,0.2281,3998.2,3996.1,0.25342439]
[1758803820627,2.50053842,3999.2,3996.1,0.25342439]
[1758803820628,2.50129832,3998.0,3997.0,2.50184737]
[1758803820937,9.31932712,3997.9,3995.8,3.0]
[1758803821145,3.6896,3997.8,3995.9,0.2284]
[1758803821463,3.6896,3997.8,3992.4,8.61841293]
[1758803821464,0.25575722,3998.8,3995.7,0.4612]
[1758803821746,0.2281,3999.1,3996.3,0.792]
[1758803822047,3.63732712,3999.0,3996.6,0.792]
[1758803822248,12.298,3998.9,3996.5,0.2269]
[1758803822463,0.01832712,3998.8,3996.6,0.4512]
[1758803822665,0.4527,3998.7,3997.0,2.50184106]
[1758803822867,1.51052712,3998.6,3996.6,0.4512]
[1758803823161,0.792,3998.2,3996.5,0.4512]
[1758803823364,0.01832712,3998.1,3996.6,0.2269]
[1758803823664,6.29318806,3998.1,3998.0,0.1248]
[1758803823850,6.29318806,3998.1,3996.0,0.2269]
[1758803823851,3.0,3997.0,3996.0,0.2269]
[1758803824058,9.295,3996.9,3996.0,0.2269]
[1758803824435,12.295,3996.9,3996.8,0.1248]
[1758803824641,3.792,3996.8,3994.6,0.6781]
[1758803824845,0.792,3996.5,3994.7,0.99625526]
[1758803825039,2.50231791,3996.3,3994.7,0.6781]
[1758803825376,2.50258109,3995.9,3994.8,2.50325423]
[1758803825588,2.50278806,3995.6,3994.0,0.4512]
[1758803825782,7.22632712,3995.5,3994.0,0.4512]
[1758803826100,0.792,3995.3,3993.2,0.2269]
[1758803826269,3.0,3995.1,3993.2,0.2269]
[1758803826444,3.0,3994.6,3993.5,2.50405859]
[1758803826777,0.01832712,3994.5,3993.2,0.2269]
[1758803826936,6.2956052,3994.3,3993.1,2.50425813]
[1758803827132,3.0,3994.1,3992.1,0.2269]
[1758803827334,2.50412742,3993.5,3992.4,2.5047053]
[1758803827560,2.10332712,3993.4,3992.4,2.5047053]
[1758803827763,7.206,3993.3,3992.3,2.5048125]
[1758803828069,0.01832712,3993.2,3992.3,2.5048175]
[1758803828270,3.01832712,3993.2,3992.1,0.2269]
[1758803828476,2.50462829,3992.7,3991.6,0.2289]
[1758803828662,0.792,3993.1,3991.6,0.002]
[1758803828663,2.10332712,3992.6,3991.6,0.002]
[1758803828969,0.01832712,3992.6,3991.6,0.002]
[1758803829268,9.29,3992.5,3991.6,0.002]
[1758803829568,0.7002,3993.1,3991.6,0.002]
[1758803829773,3.0,3992.3,3991.6,2.50723575]
[1758803829971,0.7002,3993.9,3991.7,0.70315198]
[1758803830176,0.7002,3993.9,3991.6,0.002]
[1758803830177,0.792,3993.6,3991.6,0.002]
[1758803830373,2.50489855,3992.2,3991.6,0.002]
[1758803830548,3.0,3992.0,3991.6,0.002]
[1758803830741,3.792,3991.8,3991.6,0.002]
[1758803831045,6.3155254,3991.7,3991.6,0.002]
[1758803831270,3.0,3991.7,3991.6,0.002]
[1758803831767,12.288,3991.7,3991.6,0.002]
[1758803832165,16.26589828,3991.7,3991.6,0.002]
[1758803832339,3.29744935,3991.3,3991.2,0.002]
[1758803832539,3.29744935,3991.3,3990.9,0.002]
[1758803832540,2.50563768,3991.0,3990.9,0.002]
[1758803832738,6.3159648,3991.0,3990.9,0.002]
[1758803833072,6.97833768,3991.0,3990.9,0.002]
[1758803833373,13.89291568,3991.0,3990.9,0.002]
[1758803833782,9.67071868,3991.0,3990.9,0.002]
[1758803834594,17.15140313,3991.0,3990.9,0.002]
[1758803834748,35.44813268,3991.0,3990.9,0.002]
[1758803835077,34.56077968,3991.0,3990.9,0.002]
[1758803835377,34.08465668,3991.0,3990.9,0.002]
[1758803835580,31.24432968,3991.0,3990.9,0.002]
[1758803835800,6.97833768,3991.0,3990.9,0.002]
[1758803836077,16.38813768,3991.0,3990.9,0.002]
[1758803836281,16.38813768,3991.0,3987.5,2.087]
[1758803836282,0.792,3990.8,3987.5,2.087]
[1758803836465,3.29839129,3989.8,3989.7,0.1248]
[1758803836657,0.792,3989.7,3988.1,2.50744984]
[1758803836841,2.50657977,3989.5,3988.1,0.4308]
[1758803837046,0.792,3990.1,3988.6,0.4328]
[1758803837296,3.0,3989.5,3989.0,0.2406]
[1758803837523,2.674,3989.5,3989.0,0.2406]
[1758803837736,8.19890689,3989.5,3989.0,0.002]
[1758803837935,8.97257977,3989.5,3989.0,0.002]
[1758803838235,9.65327977,3989.5,3989.0,0.002]
[1758803838725,15.58057977,3989.5,3989.0,0.002]
[1758803839016,0.792,3989.4,3988.6,0.6254]
[1758803839182,3.792,3989.8,3988.8,2.50701142]
[1758803839388,0.2454,3991.1,3988.6,0.31326047]
[1758803839624,2.5063871,3989.9,3988.9,0.4308]
[1758803839791,2.9992,3989.7,3988.9,0.4308]
[1758803840206,0.01832712,3989.6,3988.9,0.4308]
[1758803840413,2.50661973,3989.5,3988.9,0.4308]
[1758803840615,0.01832712,3989.4,3988.9,0.4308]
[1758803840800,0.01832712,3990.4,3989.3,2.50666275]
[1758803840999,0.01832712,3990.4,3989.4,0.6694]
[1758803841229,7.191,3990.5,3989.4,0.6694]
[1758803841426,9.69698384,3990.5,3989.4,0.6694]
[1758803841629,7.191,3990.5,3989.4,0.6694]
[1758803841840,3.0,3990.4,3989.6,2.50646961]
[1758803842354,0.6807,3991.9,3989.7,0.69446454]
[1758803842547,9.278,3991.8,3989.8,0.69446391]
[1758803842853,7.20732712,3991.7,3991.1,2.50554256]
[1758803843047,7.189,3991.7,3990.4,2.50601242]
[1758803843233,0.01832712,3991.6,3991.1,2.5055749]
[1758803843439,0.2454,3992.9,3991.3,2.50544935]
[1758803843612,0.2454,3993.9,3991.4,0.69445386]
[1758803843818,4.91232712,3992.9,3992.1,2.50491829]
[1758803844018,4.894,3992.9,3991.9,0.2386]
[1758803844347,0.01832712,3992.8,3991.9,0.2386]
[1758803844513,0.01832712,3992.8,3991.5,0.4308]
[1758803844514,3.0,3992.5,3991.5,0.4308]
[1758803844716,3.0,3991.8,3990.8,0.6694]
[1758803844916,0.81032712,3991.7,3990.8,0.2386]
[1758803845128,3.31553211,3991.7,3990.8,0.2386]
[1758803845452,0.01832712,3991.7,3990.8,0.2386]
[1758803845655,3.81032712,3991.7,3990.6,0.4308]
[1758803845854,2.50554482,3991.2,3990.2,0.2386]
[1758803846021,7.182,3991.1,3990.2,0.2386]
[1758803846323,7.182,3991.1,3989.9,2.5063123]
[1758803846324,2.50575163,3990.9,3989.9,2.5063123]
[1758803846528,7.181,3990.8,3990.0,2.50626219]
[1758803846739,11.77477301,3990.8,3990.7,0.1248]
[1758803846938,9.269,3990.8,3990.7,0.1248]
[1758803847148,9.268,3990.8,3990.7,0.1248]
[1758803847322,0.2454,3992.0,3990.7,0.1248]
[1758803847516,3.0,3991.5,3990.7,0.1248]
[1758803847720,0.01832712,3991.4,3990.6,2.74448039]
[1758803847917,3.0,3991.2,3990.6,0.2386]
[1758803848122,0.01832712,3991.1,3989.9,0.2386]
[1758803848353,0.792,3991.2,3991.1,0.1248]
[1758803848528,0.792,3991.2,3990.2,2.50613058]
[1758803848529,0.4353,3992.1,3990.4,0.2386]
[1758803848748,3.0,3991.4,3991.1,0.1248]
[1758803848943,7.19432712,3991.3,3990.4,0.2386]
[1758803849165,12.28132712,3991.2,3990.4,0.2386]
[1758803849466,2.50575588,3990.9,3989.9,0.2386]
[1758803849648,2.50570313,3990.9,3990.1,2.50620245]
[1758803849970,2.50570046,3990.9,3990.8,0.1248]
[1758803850167,2.50570046,3990.9,3989.1,0.48928568]
[1758803850168,3.0,3990.7,3989.1,0.48928568]
[1758803850354,3.69902712,3990.9,3989.1,0.48928568]
[1758803850355,2.50642867,3989.8,3989.1,0.2386]
[1758803850556,0.01832712,3989.7,3989.1,0.2386]
[1758803850763,0.01832712,3989.9,3989.1,0.2386]
[1758803851081,2.5065835,3989.5,3988.6,2.74573761]
[1758803851264,7.18932712,3989.4,3988.7,2.50705293]
[1758803851571,7.171,3989.4,3988.6,0.1636]
[1758803851772,0.01832712,3989.3,3988.6,2.67074027]
[1758803851940,0.01832712,3989.3,3988.7,2.50702688]
[1758803852143,7.171,3989.4,3988.7,2.50702688]
[1758803852337,0.01832712,3989.3,3988.8,2.5070072]
[1758803852543,0.01832712,3989.3,3988.6,2.50714022]
[1758803852872,2.50571505,3990.9,3988.6,2.50714022]
[1758803852873,0.4353,3990.8,3988.7,0.4308]
[1758803853085,4.87,3990.5,3989.6,2.50648646]
[1758803853372,7.87,3990.4,3989.5,0.2386]
[1758803853540,2.088,3991.1,3989.9,2.50628863]
[1758803853736,9.254,3991.1,3989.8,0.2386]
[1758803853942,3.0,3991.0,3989.9,2.53135462]
[1758803854177,9.254,3991.1,3990.5,2.50590213]
[1758803854384,11.75958828,3991.1,3990.0,0.6694]
[1758803854589,0.01832712,3991.0,3990.0,0.6694]
[1758803854745,5.52397504,3991.0,3990.0,0.2386]
[1758803854948,2.50570046,3990.9,3990.0,2.74486373]
[1758803855242,3.0,3991.0,3990.0,2.74481165]
[1758803855590,3.0,3991.0,3990.0,0.2386]
[1758803855881,1.2273,3990.9,3989.5,0.2386]
[1758803856084,2.50631987,3990.0,3988.9,0.4308]
[1758803856327,3.0,3990.1,3989.3,2.50669424]
[1758803856530,3.0,3990.1,3988.9,0.6694]
[1758803856834,3.0,3990.1,3989.3,2.50668598]
[1758803857127,5.50620923,3990.1,3989.3,2.50668598]
[1758803857345,1.2273,3990.9,3989.4,0.2386]
[1758803857545,1.2273,3990.9,3989.4,2.74523597]
[1758803857546,3.0,3990.2,3989.4,2.74523597]
[1758803857703,0.01832712,3990.1,3989.4,0.2386]
[1758803857906,0.01832712,3990.1,3989.0,2.50884835]
[1758803858102,0.792,3990.4,3989.0,0.52862484]
[1758803858310,3.0,3990.2,3989.0,0.002]
[1758803858511,2.5060321,3990.4,3989.1,0.02506831]
[1758803858738,3.0,3990.2,3989.5,2.50652815]
[1758803858937,3.792,3990.5,3989.3,0.02506705]
[1758803859144,3.792,3990.5,3989.4,2.5066426]
[1758803859345,3.0,3990.5,3989.4,0.32011097]
[1758803859547,2.5059843,3992.1,3989.1,0.4308]
[1758803859548,3.0,3990.8,3989.5,0.69446579]
[1758803859753,3.0,3990.8,3989.5,3.17592398]
[1758803859954,3.0,3990.8,3989.6,2.74510737]
[1758803860250,9.239,3990.9,3990.1,2.5061994]
[1758803860414,9.239,3990.9,3989.6,0.2386]
[1758803860415,5.50576325,3990.8,3990.7,0.1248]
[1758803860615,3.0,3990.8,3990.7,0.1248]
[1758803860921,3.0,3990.8,3989.2,2.50674721]
[1758803860922,2.50632812,3990.0,3989.2,2.50674721]
[1758803861247,9.235,3990.5,3989.2,0.27438472]
[1758803861436,2.50613232,3990.3,3989.4,2.50659331]
[1758803861614,2.50622599,3990.1,3989.3,2.50666339]
[1758803861814,2.5244829,3990.2,3989.4,2.50661677]
[1758803862049,2.50641851,3989.8,3988.6,2.3251]
[1758803862244,0.4419,3990.3,3988.7,2.50702197]
[1758803862412,2.50639786,3989.8,3988.6,0.2371]
[1758803862615,2.50657569,3989.6,3988.8,2.50701071]
[1758803862853,2.52490944,3989.5,3988.6,2.74419295]
[1758803863049,0.01832712,3989.5,3989.0,2.5088931]
[1758803863240,7.144,3989.7,3989.0,0.002]
[1758803863241,0.01832712,3989.6,3989.0,0.002]
[1758803863622,0.01832712,3989.6,3989.0,2.50888531]
[1758803863821,2.50517512,3991.8,3989.0,2.50888531]
[1758803863822,0.001,3991.7,3989.1,5.29707404]
[1758803864020,2.50556164,3991.2,3990.2,2.50611054]
[1758803864343,0.01832712,3991.1,3990.0,0.2351]
[1758803864550,2.50559891,3991.1,3990.3,2.50601763]
[1758803864749,2.50646251,3991.3,3990.2,0.0250614]
[1758803864950,0.01832712,3991.2,3990.5,2.50589393]
[1758803865149,0.01832712,3991.2,3990.4,0.2351]
[1758803865343,0.0002,3991.3,3990.5,0.02505951]
[1758803865542,0.0002,3991.3,3991.2,2.50551212]
[1758803865927,0.0002,3991.3,3991.2,2.74061212]
[1758803866432,0.0002,3991.3,3991.2,3.18271212]
[1758803866755,0.001,3991.7,3991.6,5.50526104]
[1758803866955,7.3749,3994.4,3992.5,2.50469457]
[1758803867141,2.50395735,3993.7,3992.8,2.50444618]
[1758803867322,2.52234301,3993.6,3992.7,2.50456061]
[1758803867656,2.52234301,3993.6,3992.4,2.73979882]
[1758803867657,0.01832712,3993.6,3992.8,2.50448445]
[1758803867847,2.52237323,3993.6,3992.4,0.2351]
[1758803868042,9.65037323,3993.6,3992.7,2.50451518]
[1758803868355,9.65037323,3993.6,3992.5,2.50464279]
[1758803868356,2.5040785,3993.5,3992.5,2.50464279]
[1758803868546,2.50418561,3993.4,3992.5,2.50464279]
[1758803868749,2.5043102,3993.2,3992.3,2.50481871]
[1758803868930,0.01832712,3993.1,3992.5,2.50469501]
[1758803869132,0.792,3993.5,3991.9,2.50502044]
[1758803869341,2.50431995,3993.1,3992.1,2.50493405]
[1758803869547,11.7337272,3993.0,3991.9,2.50506856]
[1758803869853,9.211,3993.0,3991.9,3.01413154]
[1758803870153,9.211,3993.0,3992.1,2.5049461]
[1758803870455,11.71540552,3993.0,3991.4,0.2351]
[1758803870642,2.50450811,3992.8,3991.9,2.50503567]
[1758803870953,0.01832712,3992.7,3991.4,0.2351]
[1758803871178,0.792,3993.4,3991.4,0.2351]
[1758803871179,0.001,3993.6,3992.8,0.1248]
[1758803871454,0.001,3993.6,3992.6,0.1248]
[1758803871455,3.0,3993.4,3992.6,0.1248]
[1758803871656,0.01832712,3993.3,3991.6,0.2351]
[1758803872062,0.01832712,3993.3,3991.7,2.50519828]
[1758803872233,3.31452164,3993.3,3993.2,0.1248]
[1758803872559,3.99832164,3993.3,3993.2,0.1248]
[1758803872924,2.50483443,3992.3,3991.6,0.2351]
[1758803873326,2.52316155,3992.3,3992.2,0.1248]
[1758803873658,2.96506155,3992.3,3992.2,0.1248]
[1758803874182,3.20696155,3992.3,3992.2,0.1248]
[1758803874328,6.99896155,3992.3,3992.2,0.1248]
[1758803874533,6.98063443,3992.3,3992.2,0.1248]
[1758803874837,14.08863443,3992.3,3992.2,0.1248]
[1758803875050,16.17663443,3992.3,3992.2,0.1248]
[1758803875751,15.49283443,3992.3,3992.2,0.1248]
[1758803875942,13.39883443,3992.3,3992.2,0.1248]
[1758803876145,15.48683443,3992.3,3992.2,0.1248]
[1758803876342,0.792,3993.2,3992.2,0.1248]
[1758803876566,0.792,3993.0,3991.6,0.02505261]
[1758803876770,0.792,3993.0,3991.5,0.2351]
[1758803876771,3.0,3992.4,3991.5,0.2351]
[1758803876968,3.0,3992.2,3990.9,0.2351]
[1758803877354,5.94678452,3992.2,3992.1,0.1248]
[1758803877575,6.18868452,3992.2,3992.1,0.1248]
[1758803877791,2.50557192,3991.2,3990.3,2.50607687]
[1758803877955,0.6838,3992.2,3990.5,2.50593419]
[1758803878140,2.50537748,3991.5,3990.5,0.6772]
[1758803878473,3.0,3992.0,3990.9,2.50565652]
[1758803878474,7.095,3991.4,3990.9,2.50565652]
[1758803878685,7.095,3991.4,3990.2,2.50609878]
[1758803878686,7.095,3991.4,3991.0,2.50563545]
[1758803878869,7.095,3991.4,3991.1,0.2351]
[1758803879274,7.093,3991.4,3991.1,0.2351]
[1758803879669,0.4419,3992.6,3991.2,0.6772]
[1758803879854,9.18,3992.5,3991.2,0.70225512]
[1758803880051,2.50490054,3992.2,3991.4,2.50533429]
[1758803880248,2.50482178,3992.3,3991.3,2.50543452]
[1758803880447,9.002,3992.4,3991.4,0.02505386]
[1758803880753,2.50514578,3991.8,3990.9,2.5056413]
[1758803880959,0.01832712,3992.3,3990.8,0.2351]
[1758803881189,3.0,3992.1,3990.8,0.2351]
[1758803881347,3.0,3992.1,3990.3,0.4421]
[1758803881348,0.01832712,3992.0,3990.3,0.4421]
[1758803881552,3.29714561,3991.8,3990.4,2.5059846]
[1758803881879,2.50563812,3991.0,3990.3,2.74113514]
[1758803882185,9.58965634,3991.0,3990.3,0.75983493]
[1758803882492,0.01832712,3990.9,3989.8,0.4421]
[1758803882795,2.50595903,3990.5,3989.7,0.231]
[1758803883000,0.01832712,3990.7,3990.1,2.5061928]
[1758803883177,2.52416673,3990.7,3989.7,0.231]
[1758803883365,0.01832712,3990.9,3989.7,0.50474681]
[1758803883693,0.01832712,3990.9,3990.0,2.5062459]
[1758803883869,0.01832712,3990.9,3989.9,2.50628286]
[1758803884074,2.50576325,3990.8,3989.7,0.6777]
[1758803884393,2.50590317,3990.6,3989.7,0.231]
[1758803884590,0.01832712,3990.5,3989.2,0.231]
[1758803884900,0.01832712,3990.5,3989.2,2.73776703]
[1758803884901,2.5063065,3990.0,3989.2,2.73776703]
[1758803885110,11.68666747,3989.9,3989.2,2.73776703]
[1758803885273,0.01832712,3989.8,3989.0,0.002]
[1758803885481,2.50650331,3989.7,3989.0,0.002]
[1758803885668,0.01832712,3989.8,3989.0,2.50887631]
[1758803885869,2.50648654,3989.7,3989.0,0.002]
[1758803886294,2.50648654,3989.7,3989.0,2.50888589]
[1758803886610,0.01832712,3989.6,3989.0,0.002]
[1758803886762,2.50683111,3989.1,3989.0,0.002]
[1758803887124,15.37443111,3989.1,3989.0,0.002]
[1758803887684,15.37443111,3989.1,3989.0,0.1268]
[1758803887883,15.12673111,3989.1,3988.2,0.002]
[1758803888113,15.12673111,3989.1,3986.1,0.4467]
[1758803888114,3.0,3988.2,3986.1,0.4467]
[1758803888421,10.75925806,3988.6,3986.4,2.50852307]
[1758803888422,9.88092712,3988.1,3986.4,2.50852307]
[1758803888621,9.88092712,3988.1,3985.4,2.088]
[1758803888622,2.50788761,3987.5,3984.0,0.002]
[1758803888828,0.01832712,3987.4,3986.0,0.231]
[1758803889126,7.061,3987.3,3986.5,2.50846105]
[1758803889284,0.01832712,3987.2,3986.5,2.5084463]
[1758803889488,0.01832712,3987.2,3986.8,2.50827588]
[1758803889685,0.01832712,3987.2,3987.1,0.1248]
[1758803889989,9.16432712,3987.2,3987.1,0.1248]
[1758803890213,0.2477,3988.3,3987.1,2.50803407]
[1758803890424,0.792,3988.5,3987.1,0.25080341]
[1758803890609,0.792,3988.5,3986.1,0.231]
[1758803890610,3.0,3988.3,3986.1,0.231]
[1758803890815,0.01832712,3988.2,3985.0,0.49851422]
[1758803891014,3.683,3988.1,3986.2,0.4628]
[1758803891327,3.683,3988.1,3986.4,2.50852899]
[1758803891533,3.683,3988.1,3985.6,2.50898389]
[1758803891534,3.0,3987.9,3986.5,0.7104]
[1758803891684,9.16132712,3987.8,3987.3,2.50795466]
[1758803892030,0.2449,3988.3,3986.9,0.2476]
[1758803892190,2.50619751,3990.2,3986.1,2.50869281]
[1758803892191,0.2449,3988.8,3988.0,2.50751107]
[1758803892392,0.01832712,3988.7,3987.8,0.2476]
[1758803892615,0.01832712,3989.0,3988.4,2.50724634]
[1758803892815,2.52523537,3989.0,3988.1,2.50740784]
[1758803892989,3.0,3988.8,3987.3,0.2476]
[1758803893190,0.01832712,3988.7,3988.0,2.50752238]
[1758803893385,2.52542776,3988.7,3987.8,2.5076054]
[1758803893624,3.0,3989.3,3988.3,2.5073317]
[1758803893806,9.15432712,3989.2,3988.2,0.2476]
[1758803893985,0.792,3988.8,3987.5,0.2476]
[1758803894188,0.792,3988.3,3986.1,0.4628]
[1758803894506,3.0,3988.1,3986.2,0.2476]
[1758803894718,2.5082079,3987.0,3986.2,0.2476]
[1758803895028,2.5082079,3987.0,3985.6,0.4628]
[1758803895029,9.132,3986.9,3985.6,0.7104]
[1758803895211,0.792,3986.6,3984.9,0.2476]
[1758803895521,2.50860164,3986.3,3984.9,0.27571127]
[1758803895722,2.50878073,3986.0,3984.6,0.2476]
[1758803896024,11.63684938,3985.9,3984.7,0.48789599]
[1758803896187,11.63684938,3985.9,3984.6,0.2476]
[1758803896188,0.01832712,3985.8,3984.6,0.2476]
[1758803896389,0.792,3985.7,3984.3,0.2476]
[1758803896627,0.01832712,3985.6,3984.4,2.50976005]
[1758803896824,0.01832712,3985.6,3984.3,0.2476]
[1758803897017,2.50896956,3985.7,3984.8,2.50951562]
[1758803897224,3.4388,3985.8,3984.7,2.50959235]
[1758803897423,0.4388,3986.5,3984.8,0.2476]
[1758803897727,9.123,3986.4,3985.6,2.50897079]
[1758803897891,3.19151053,3987.6,3985.7,0.02508969]
[1758803898090,9.122,3987.5,3985.8,0.68008144]
[1758803898298,4.51507312,3987.4,3984.9,0.2476]
[1758803898500,3.0,3985.2,3983.6,0.4648]
[1758803898700,0.01832712,3985.1,3983.6,0.002]
[1758803898931,0.3252088,3987.3,3983.6,0.002]
[1758803898932,3.0,3985.2,3983.8,0.2476]
[1758803899092,0.2449,3985.4,3984.0,0.0271004]
[1758803899297,2.089,3985.4,3984.1,0.2476]
[1758803899509,0.4388,3987.0,3984.3,2.50985116]
[1758803899799,0.4388,3987.0,3984.4,0.60254512]
[1758803899800,3.0,3986.8,3984.4,0.60254512]
[1758803900000,5.50841107,3986.6,3984.6,2.50966219]
[1758803900202,0.01832712,3986.5,3984.7,0.7104]
[1758803900402,2.5088437,3985.9,3985.1,2.50934017]
[1758803900614,2.5088437,3985.9,3984.4,2.86468475]
[1758803900615,9.13432712,3985.8,3984.5,2.50972197]
[1758803900796,2.50905225,3985.6,3984.5,0.58646671]
[1758803900996,0.01832712,3985.5,3984.8,2.50948701]
[1758803901191,0.01832712,3985.5,3984.6,2.50960581]
[1758803902735,3.30197715,3984.1,3984.0,0.002]
[1758803903028,15.42730427,3984.1,3984.0,0.002]
[1758803903231,2.51022063,3983.8,3982.6,2.51092251]
[1758803903415,2.51022063,3983.8,3982.5,0.0536]
[1758803903416,2.51030039,3983.6,3982.7,0.50755539]
[1758803903600,0.01832712,3983.5,3981.5,0.4628]